fUST/lending_fUST_20251114
["ID","MTS","AMOUNT","RATE_DAILY","PERIOD"]
[393897793,1763080243841,-1862.04,0.00031966,3]
[393897794,1763080243850,-3724.06,0.00031976,3]
[393897795,1763080243860,-420.0,0.00032002,2]
[393897796,1763080243870,-1000.0,0.00032021,5]
[393897797,1763080243879,-1554.0,0.00032077,3]
[393897798,1763080243889,-500.0,0.00032213,2]
[393897799,1763080243898,-167.54768885,0.00032312,30]
[393897800,1763080243907,-260.0,0.00032348,2]
[393897801,1763080243916,-164.84,0.000324,7]
[393897802,1763080243925,-44655.9546788,0.00032448,2]
[393897803,1763080243934,-185.221,0.00032458,32]
[393897804,1763080243944,-183.93418736,0.00032495,30]
[393897805,1763080243953,-518.75298684,0.00032568,5]
[393897806,1763080243962,-884.61467122,0.00032718,2]
[393897807,1763080243971,-360.0,0.00032896,2]
[393897808,1763080243981,-10040.30878212,0.0003295,2]
[393897809,1763080243991,-344.85044087,0.00032973,5]
[393897810,1763080243999,-159.86611592,0.00032973,5]
[393897811,1763080244008,-151.0,0.0003298,31]
[393897812,1763080244017,-156.171134,0.0003298,31]
[393897813,1763080244027,-151.0,0.0003298,31]
[393897814,1763080244036,-151.0,0.0003298,31]
[393897815,1763080244046,-181.093957,0.0003298,31]
[393897816,1763080244056,-151.0,0.0003298,31]
[393897817,1763080244066,-219.956893,0.0003298,31]
[393897818,1763080244075,-151.0,0.0003298,31]
[393897819,1763080244084,-219.956893,0.0003298,31]
[393897820,1763080244093,-151.0,0.0003298,31]
[393897821,1763080244103,-219.956893,0.0003298,31]
[393897822,1763080244112,-219.956893,0.0003298,31]
[393897823,1763080244123,-151.0,0.0003298,31]
[393897824,1763080244133,-151.0,0.0003298,2]
[393897825,1763080244142,-151.0,0.0003298,31]
[393897826,1763080244151,-151.0,0.0003298,31]
[393897827,1763080244161,-151.0,0.0003298,31]
[393897828,1763080244172,-151.0,0.0003298,31]
[393897829,1763080244182,-151.0,0.0003298,31]
[393897830,1763080244192,-151.0,0.0003298,31]
[393897831,1763080244202,-151.0,0.0003298,31]
[393897832,1763080244212,-151.0,0.0003298,7]
[393897833,1763080244222,-151.0,0.0003298,7]
[393897834,1763080244231,-151.0,0.0003298,7]
[393897835,1763080244240,-151.0,0.0003298,7]
[393897836,1763080244249,-151.0,0.0003298,7]
[393897837,1763080244259,-151.0,0.0003298,7]
[393897838,1763080244268,-151.0,0.0003298,31]
[393897839,1763080244278,-151.0,0.0003298,31]
[393897840,1763080244288,-151.0,0.0003298,28]
[393897841,1763080244300,-151.0,0.0003298,28]
[393897842,1763080244309,-151.0,0.0003298,31]
[393897843,1763080244319,-151.0,0.0003298,31]
[393897844,1763080244328,-181.953465,0.0003298,31]
[393897845,1763080244337,-151.0,0.0003298,31]
[393897846,1763080244349,-154.408256,0.0003298,31]
[393897847,1763080244360,-151.0,0.0003298,31]
[393897848,1763080244369,-151.0,0.0003298,31]
[393897849,1763080244378,-276.365573,0.0003298,31]
[393897850,1763080244389,-1574.892338,0.0003298,31]
[393897851,1763080244398,-155.250114,0.0003298,31]
[393897852,1763080244407,-276.365573,0.0003298,31]
[393897853,1763080244417,-163.319142,0.0003298,31]
[393897854,1763080244426,-1574.892338,0.0003298,31]
[393897855,1763080244435,-276.365573,0.0003298,31]
[393897856,1763080244445,-163.319142,0.0003298,31]
[393897857,1763080244454,-151.0,0.0003298,31]
[393897858,1763080244465,-331.619006,0.0003298,31]
[393897859,1763080244476,-1574.892338,0.0003298,31]
[393897860,1763080244488,-276.365573,0.0003298,31]
[393897861,1763080244498,-151.0,0.0003298,31]
[393897862,1763080244507,-163.319142,0.0003298,31]
[393897863,1763080244516,-331.619006,0.0003298,31]
[393897864,1763080244526,-1574.892338,0.0003298,31]
[393897865,1763080244535,-163.319142,0.0003298,31]
[393897866,1763080244544,-331.619006,0.0003298,31]
[393897867,1763080244557,-331.619006,0.0003298,31]
[393897868,1763080244566,-151.0,0.0003298,31]
[393897869,1763080244658,-151.0,0.0003298,31]
[393897870,1763080244670,-151.0,0.0003298,31]
[393897871,1763080244680,-151.0,0.0003298,31]
[393897872,1763080244690,-281.65090661,0.00032989,2]
[393897873,1763080244699,-281.881846,0.0003299,31]
[393897874,1763080244709,-151.0,0.0003299,31]
[393897875,1763080244718,-151.0,0.0003299,31]
[393897876,1763080244727,-151.0,0.0003299,31]
[393897877,1763080244737,-151.0,0.0003299,31]
[393897878,1763080244746,-151.0,0.0003299,31]
[393897879,1763080244755,-151.0,0.0003299,31]
[393897880,1763080244764,-151.0,0.0003299,7]
[393897881,1763080244774,-151.0,0.0003299,31]
[393897882,1763080244783,-151.0,0.0003299,31]
[393897883,1763080244792,-151.0,0.0003299,31]
[393897884,1763080244804,-151.0,0.0003299,31]
[393897885,1763080244814,-151.0,0.0003299,31]
[393897886,1763080244823,-151.0,0.0003299,31]
[393897887,1763080244833,-159.357752,0.0003299,31]
[393897888,1763080244842,-151.0,0.0003299,31]
[393897889,1763080244852,-151.0,0.0003299,30]
[393897890,1763080244861,-151.0,0.0003299,31]
[393897891,1763080244870,-301.999999,0.0003299,31]
[393897892,1763080244880,-181.059103,0.0003299,31]
[393897893,1763080244889,-151.0,0.0003299,31]
[393897894,1763080244898,-151.0,0.0003299,31]
[393897895,1763080244907,-151.0,0.0003299,31]
[393897896,1763080244916,-151.0,0.0003299,31]
[393897897,1763080244925,-291.216836,0.0003299,31]
[393897898,1763080244936,-153.648193,0.0003299,31]
[393897899,1763080244945,-151.0,0.0003299,31]
[393897900,1763080244955,-219.956893,0.0003299,31]
[393897901,1763080244964,-151.0,0.0003299,31]
[393897902,1763080244973,-219.956893,0.0003299,31]
[393897903,1763080244982,-199.707231,0.0003299,31]
[393897904,1763080244991,-219.956893,0.0003299,31]
[393897905,1763080245000,-219.956893,0.0003299,31]
[393897906,1763080245010,-205.587715,0.0003299,31]
[393897907,1763080245021,-151.0,0.0003299,2]
[393897908,1763080245030,-151.0,0.0003299,31]
[393897909,1763080245039,-151.0,0.0003299,31]
[393897910,1763080245048,-151.0,0.0003299,31]
[393897911,1763080245060,-151.0,0.0003299,31]
[393897912,1763080245070,-182.201811,0.0003299,31]
[393897913,1763080245079,-151.0,0.0003299,7]
[393897914,1763080245088,-151.0,0.0003299,7]
[393897915,1763080245097,-151.0,0.0003299,7]
[393897916,1763080245108,-151.0,0.0003299,31]
[393897917,1763080245118,-151.0,0.0003299,28]
[393897918,1763080245127,-151.0,0.0003299,31]
[393897919,1763080245136,-27960.6303859,0.0003299,2]
[393897920,1763080245150,-84423.130015,0.0003299,2]
[393897921,1763080245161,-1313.08623579,0.0003299,2]
[393897925,1763080246325,-150.0,0.00028835,2]
[393897926,1763080246335,-500.0,0.00028858,2]
[393897927,1763080246344,-372.99,0.00029956,2]
[393897928,1763080246355,-127.01,0.00029956,2]
[393897930,1763080246365,-500.0,0.00029958,2]
[393897932,1763080246374,-500.0,0.00029959,2]
[393897933,1763080246383,-500.0,0.00030526,2]
[393897935,1763080246393,-500.0,0.00030526,2]
[393897936,1763080246402,-500.0,0.00030526,2]
[393897937,1763080246411,-500.0,0.00031406,2]
[393897939,1763080246421,-500.0,0.00031406,2]
[393897940,1763080246430,-500.0,0.00031415,2]
[393897941,1763080246439,-284.64,0.00031457,2]
[393897942,1763080246449,-500.0,0.00032677,2]
[393897943,1763080246458,-10564.302593,0.0003299,2]
[393897944,1763080246510,-9706.71480631,0.0003299,2]
[393897945,1763080246519,-151.0,0.0003299,31]
[393897946,1763080246529,-276.365573,0.0003299,31]
[393897947,1763080246539,-1574.892338,0.0003299,31]
[393897948,1763080246548,-276.365573,0.0003299,31]
[393897949,1763080246560,-163.319142,0.0003299,31]
[393897950,1763080246569,-1574.892338,0.0003299,31]
[393897951,1763080246579,-276.365573,0.0003299,31]
[393897952,1763080246589,-163.319142,0.0003299,31]
[393897953,1763080246598,-151.0,0.0003299,31]
[393897954,1763080246608,-331.619006,0.0003299,31]
[393897955,1763080246620,-102.18891233,0.0003299,31]
[393897967,1763080280415,200.0,0.00039584,30]
[393897969,1763080335178,-150.0,0.00029114,2]
[393897996,1763080398724,150.0,0.0003288,120]
[393897997,1763080410202,-150.0,0.00028924,2]
[393897998,1763080411988,150.0,0.0003288,120]
[393898000,1763080424515,809.04,0.00028018,2]
[393898003,1763080436956,172.81704643,0.0003288,120]
[393898004,1763080449147,150.0,0.0002589,2]
[393898005,1763080449517,177.0,0.0002789,2]
[393898010,1763080510338,151.0,0.00039577,30]
[393898011,1763080511040,156.587,0.00039577,30]
[393898012,1763080511669,162.380719,0.00039577,30]
[393898013,1763080512322,168.3888056,0.00039577,30]
[393898014,1763080512991,174.61919141,0.00039577,30]
[393898015,1763080513666,181.08010149,0.00039577,30]
[393898016,1763080514296,187.78006525,0.00039577,30]
[393898017,1763080514936,194.72792766,0.00039577,30]
[393898018,1763080515597,201.93286099,0.00039577,30]
[393898019,1763080516263,209.40437684,0.00039577,30]
[393898020,1763080516912,217.15233878,0.00039577,30]
[393898021,1763080517546,225.18697532,0.00039577,30]
[393898022,1763080518187,233.51889341,0.00039577,30]
[393898023,1763080519041,242.15909246,0.00039577,30]
[393898024,1763080519469,251.11897888,0.00039577,30]
[393898025,1763080520083,260.4103811,0.00039577,30]
[393898026,1763080520795,270.0455652,0.00039577,30]
[393898027,1763080521440,280.03725112,0.00039577,30]
[393898028,1763080522068,290.39862941,0.00039577,30]
[393898029,1763080522715,290.39862941,0.00039577,30]
[393898031,1763080530720,-150.0,0.00029013,2]
[393898033,1763080580725,200.0,0.00039577,30]
[393898077,1763080643137,150.0,0.00025164,30]
[393898079,1763080645032,-150.0,0.00027451,30]
[393898080,1763080650789,339.8709238,0.00039577,20]
[393898087,1763080739211,150.0,0.00025006,30]
[393898088,1763080740124,-150.0,0.00027279,30]
[393898099,1763080770293,-201.0,0.0002589,2]
[393898100,1763080786916,157.0,0.000328,120]
[393898101,1763080787938,157.0,0.000328,120]
[393898103,1763080804137,157.0,0.000271,7]
[393898104,1763080810110,157.0,0.000271,5]
[393898108,1763080818057,151.0,0.00039577,30]
[393898109,1763080818711,156.587,0.00039577,30]
[393898110,1763080819169,150.0,0.00025182,30]
[393898111,1763080819326,162.380719,0.00039577,30]
[393898112,1763080819971,168.3888056,0.00039577,30]
[393898113,1763080820389,-196.43618746,0.00025243,2]
[393898114,1763080820414,-113.47642137,0.00027471,30]
[393898115,1763080820568,174.61919141,0.00039577,30]
[393898116,1763080821202,181.08010149,0.00039577,30]
[393898117,1763080821802,187.78006525,0.00039577,30]
[393898118,1763080822435,194.72792766,0.00039577,30]
[393898119,1763080823057,201.93286099,0.00039577,30]
[393898120,1763080823187,-36.52357863,0.00027471,30]
[393898121,1763080824168,209.40437684,0.00039577,30]
[393898122,1763080824797,217.15233878,0.00039577,30]
[393898123,1763080825483,225.18697532,0.00039577,30]
[393898124,1763080826008,233.51889341,0.00039577,30]
[393898125,1763080826769,242.15909246,0.00039577,30]
[393898126,1763080827270,251.11897888,0.00039577,30]
[393898127,1763080828130,260.4103811,0.00039577,30]
[393898128,1763080828796,270.0455652,0.00039577,30]
[393898129,1763080829588,280.03725112,0.00039577,30]
[393898130,1763080830236,290.39862941,0.00039577,30]
[393898131,1763080831332,290.39862941,0.00039577,30]
[393898132,1763080846849,-157.0,0.000271,2]
[393898135,1763080880106,200.0,0.00039577,30]
[393898170,1763080991201,159.0,0.00039582,120]
[393898178,1763081085253,-150.0,0.00028862,2]
[393898179,1763081085274,-218.6567819,0.00028905,2]
[393898180,1763081087407,-250.5477907,0.00028905,2]
[393898203,1763081112236,151.0,0.00039582,120]
[393898205,1763081113042,156.587,0.00039582,120]
[393898209,1763081113532,162.380719,0.00039582,120]
[393898210,1763081114139,168.3888056,0.00039582,120]
[393898211,1763081114742,174.61919141,0.00039582,120]
[393898212,1763081115406,181.08010149,0.00039582,120]
[393898213,1763081116069,187.78006525,0.00039582,120]
[393898214,1763081116707,194.72792766,0.00039582,120]
[393898215,1763081117322,201.93286099,0.00039582,120]
[393898216,1763081117952,209.40437684,0.00039582,120]
[393898217,1763081118589,217.15233878,0.00039582,120]
[393898218,1763081119227,225.18697532,0.00039582,120]
[393898219,1763081119848,233.51889341,0.00039582,120]
[393898220,1763081120466,242.15909246,0.00039582,120]
[393898221,1763081121137,251.11897888,0.00039582,120]
[393898222,1763081121780,260.4103811,0.00039582,120]
[393898223,1763081122419,270.0455652,0.00039582,120]
[393898224,1763081123188,280.03725112,0.00039582,120]
[393898225,1763081123694,290.39862941,0.00039582,120]
[393898226,1763081124335,290.39862941,0.00039582,120]
[393898235,1763081180863,200.0,0.00039582,30]
[393898238,1763081205127,-183.70037857,0.00028805,2]
[393898239,1763081229496,5000.0,0.000271,3]
[393898241,1763081252215,5000.0,0.000271,3]
[393898243,1763081274555,5000.0,0.000271,3]
[393898248,1763081310176,-309.7348783,0.00025243,2]
[393898249,1763081312720,-259.0346564,0.00025243,2]
[393898250,1763081314257,-67.12729724,0.00025243,2]
[393898251,1763081325326,-163.87270276,0.00027602,2]
[393898252,1763081328487,-200.12729724,0.00027602,2]
[393898254,1763081370201,-264.00887808,0.0002746,2]
[393898255,1763081372340,-167.98166249,0.0002746,2]
[393898256,1763081373855,-168.56,0.0002746,2]
[393898257,1763081376612,-154.49965307,0.0002746,2]
[393898258,1763081378118,-154.90725084,0.0002746,2]
[393898259,1763081381295,-426.79317988,0.0002746,2]
[393898260,1763081383986,-193.64987018,0.0002746,2]
[393898261,1763081387179,-205.31647299,0.0002746,2]
[393898262,1763081390036,-237.93720233,0.0002746,2]
[393898263,1763081392207,-201.70240487,0.0002746,2]
[393898264,1763081394513,-420.45944929,0.0002746,2]
[393898267,1763081409143,151.0,0.00039582,120]
[393898268,1763081409748,156.587,0.00039582,120]
[393898269,1763081410421,162.380719,0.00039582,120]
[393898270,1763081411169,168.3888056,0.00039582,120]
[393898271,1763081411834,174.61919141,0.00039582,120]
[393898272,1763081412498,181.08010149,0.00039582,120]
[393898273,1763081413181,187.78006525,0.00039582,120]
[393898274,1763081413855,194.72792766,0.00039582,120]
[393898275,1763081414551,201.93286099,0.00039582,120]
[393898276,1763081415629,209.40437684,0.00039582,120]
[393898277,1763081416301,217.15233878,0.00039582,120]
[393898278,1763081417081,225.18697532,0.00039582,120]
[393898281,1763081417694,233.51889341,0.00039582,120]
[393898282,1763081418314,242.15909246,0.00039582,120]
[393898283,1763081418976,251.11897888,0.00039582,120]
[393898284,1763081419587,260.4103811,0.00039582,120]
[393898285,1763081420259,270.0455652,0.00039582,120]
[393898286,1763081420881,280.03725112,0.00039582,120]
[393898287,1763081421507,290.39862941,0.00039582,120]
[393898288,1763081422144,290.39862941,0.00039582,120]
[393898319,1763081432146,-2493.54712205,0.00027503,2]
[393898321,1763081432158,-157.92024985,0.00027674,2]
[393898323,1763081432168,-959.17451834,0.00027774,2]
[393898416,1763081438090,-736.12090922,0.00027774,2]
[393898423,1763081438143,-884.12399986,0.00027774,2]
[393898638,1763081440429,-704.61047167,0.00027774,2]
[393898639,1763081440438,-382.25221472,0.00027874,2]
[393898645,1763081443571,-20.41115317,0.00027874,2]
[393898646,1763081443608,-800.12088757,0.00027874,2]
[393898647,1763081443617,-196.11910904,0.00028705,2]
[393898648,1763081443626,-150.0,0.00028888,2]
[393898649,1763081443635,-313.40601019,0.00030336,2]
[393898650,1763081443644,-165.52454389,0.00030522,2]
[393898651,1763081443653,-151.0,0.00030526,14]
[393898652,1763081443661,-224.01886858,0.00030565,2]
[393898653,1763081443671,-153.58423569,0.00030573,2]
[393898654,1763081443679,-175.74093811,0.00030697,2]
[393898655,1763081443688,-160.0,0.000308,2]
[393898656,1763081443697,-400.0,0.00030866,2]
[393898657,1763081443706,-1600.0,0.00030867,2]
[393898658,1763081443717,-884.61467122,0.00030876,2]
[393898659,1763081443726,-1150.47205292,0.00031164,2]
[393898660,1763081443735,-635.89683194,0.00031237,2]
[393898661,1763081443745,-260.0,0.00031348,2]
[393898662,1763081443754,-235.4,0.00031514,2]
[393898663,1763081443763,-360.0,0.00031896,2]
[393898664,1763081443772,-868.76472596,0.00032083,2]
[393898666,1763081443781,-1067.43057369,0.00032114,2]
[393898668,1763081443791,-281.29934664,0.00032196,2]
[393898670,1763081443801,-884.61467122,0.000322,2]
[393898671,1763081443810,-294.6672,0.00032232,2]
[393898672,1763081443820,-175.7409381,0.00032312,30]
[393898673,1763081443829,-460.0,0.00032444,2]
[393898674,1763081443839,-158.85139575,0.00032645,6]
[393898675,1763081443848,-500.00000003,0.00032889,4]
[393898676,1763081443858,-4450.29968408,0.0003289,2]
[393898677,1763081443867,-2222.65,0.0003297,10]
[393898678,1763081443876,-1852.21,0.0003297,10]
[393898679,1763081443886,-1543.51,0.0003297,10]
[393898680,1763081443895,-500.0,0.00032973,5]
[393898681,1763081443904,-500.0,0.00032973,5]
[393898682,1763081443913,-250.5477907,0.00032979,7]
[393898683,1763081443923,-500.0,0.00032979,7]
[393898684,1763081443932,-500.0,0.00032979,7]
[393898685,1763081443941,-500.0,0.00032979,7]
[393898686,1763081443951,-500.0,0.00032979,7]
[393898687,1763081443960,-500.0,0.00032979,7]
[393898688,1763081443970,-500.0,0.00032979,7]
[393898689,1763081443979,-500.0,0.00032979,7]
[393898690,1763081443988,-509.56052956,0.00032979,7]
[393898691,1763081443998,-500.0,0.00032979,7]
[393898692,1763081444007,-568.7695347,0.00032979,7]
[393898693,1763081444017,-500.0,0.00032979,7]
[393898694,1763081444029,-605.49481628,0.00032979,7]
[393898695,1763081444039,-2492.72,0.0003298,3]
[393898696,1763081444048,-1246.36,0.0003298,3]
[393898697,1763081444058,-78711.1859925,0.0003298,2]
[393898698,1763081444069,-2040.76181306,0.0003298,2]
[393898699,1763081444078,-185.221,0.00032989,34]
[393898700,1763081444087,-500.0,0.00032989,7]
[393898701,1763081444098,-500.0,0.00032989,7]
[393898702,1763081444107,-257.48215031,0.00032989,7]
[393898703,1763081444117,-250.33665697,0.00032989,7]
[393898704,1763081444126,-500.0,0.00032989,2]
[393898705,1763081444135,-500.0,0.00032989,2]
[393898706,1763081444144,-500.0,0.00032989,2]
[393898707,1763081444153,-500.0,0.00032989,2]
[393898708,1763081444162,-118066.778989,0.0003299,2]
[393898709,1763081444171,-3061.14271959,0.0003299,2]
[393898710,1763081444180,-560.0,0.00032992,2]
[393898711,1763081444189,-500.0,0.00032999,2]
[393898712,1763081444198,-281.65090661,0.00032999,2]
[393898713,1763081444207,-5836.53923569,0.00033,10]
[393898714,1763081444218,-353.83491488,0.00033,10]
[393898716,1763081446443,-623.18,0.0003298,3]
[393898717,1763081446453,-44193.8006226,0.00033,10]
[393898718,1763081446463,-5038.5193774,0.00033,30]
[393898729,1763081480172,200.0,0.00039582,30]
[393898730,1763081495548,-150.0,0.00028911,2]
[393898731,1763081495587,-225.59,0.0003154,2]
[393898732,1763081495628,-526.54167297,0.00032973,5]
[393898733,1763081495674,-500.0,0.00032979,7]
[393898734,1763081495731,-500.0,0.00032979,7]
[393898735,1763081495776,-515.07338249,0.00032979,7]
[393898736,1763081495816,-1286.26,0.0003299,10]
[393898737,1763081495856,-1457.11,0.0003299,10]
[393898738,1763081495894,-1214.26,0.0003299,10]
[393898739,1763081495933,-1011.88,0.0003299,10]
[393898740,1763081495973,-400.0,0.00032999,2]
[393898741,1763081496009,-2945.53440069,0.00033,30]
[393898742,1763081496051,-55740.27519541,0.00033,2]
[393898743,1763081496063,-150.0,0.00033,2]
[393898744,1763081496079,-225.59,0.00033,2]
[393898745,1763081496096,-526.54167297,0.00033,2]
[393898746,1763081496106,-500.0,0.00033,2]
[393898747,1763081496117,-500.0,0.00033,2]
[393898748,1763081496130,-515.07338249,0.00033,2]
[393898749,1763081496141,-1286.26,0.00033,2]
[393898750,1763081496155,-1457.11,0.00033,2]
[393898751,1763081496168,-1214.26,0.00033,2]
[393898752,1763081496178,-1011.88,0.00033,2]
[393898753,1763081496193,-400.0,0.00033,2]
[393898754,1763081496204,-2945.53440069,0.00033,2]
[393898755,1763081496224,-6322.70124073,0.00033,2]
[393898756,1763081496241,-164.84,0.00033,7]
[393898757,1763081496250,-151.0,0.00033,31]
[393898758,1763081496260,-151.0,0.00033,31]
[393898759,1763081496268,-151.0,0.00033,31]
[393898760,1763081496278,-151.0,0.00033,31]
[393898761,1763081496287,-157.802601,0.00033,31]
[393898762,1763081496376,-151.0,0.00033,31]
[393898763,1763081496385,-151.0,0.00033,31]
[393898764,1763081496394,-151.0,0.00033,31]
[393898765,1763081496403,-151.0,0.00033,31]
[393898766,1763081496413,-181.059103,0.00033,31]
[393898767,1763081496423,-151.0,0.00033,31]
[393898768,1763081496432,-154.473228,0.00033,31]
[393898769,1763081496442,-684.574023,0.00033,31]
[393898770,1763081496451,-684.574023,0.00033,31]
[393898771,1763081496460,-684.574023,0.00033,31]
[393898772,1763081496469,-151.0,0.00033,31]
[393898773,1763081496478,-684.574023,0.00033,31]
[393898774,1763081496487,-155.250114,0.00033,31]
[393898775,1763081496496,-151.0,0.00033,31]
[393898776,1763081496506,-151.0,0.00033,15]
[393898777,1763081496516,-151.0,0.00033,15]
[393898778,1763081496527,-151.0,0.00033,31]
[393898779,1763081496536,-151.0,0.00033,31]
[393898780,1763081496546,-151.0,0.00033,31]
[393898781,1763081496555,-151.0,0.00033,31]
[393898782,1763081496564,-181.093957,0.00033,31]
[393898783,1763081496574,-281.881846,0.00033,31]
[393898784,1763081496583,-151.0,0.00033,2]
[393898785,1763081496592,-151.0,0.00033,31]
[393898786,1763081496601,-151.0,0.00033,31]
[393898787,1763081496610,-151.0,0.00033,31]
[393898788,1763081496619,-245.286667,0.00033,31]
[393898789,1763081496628,-151.0,0.00033,31]
[393898790,1763081496638,-151.0,0.00033,31]
[393898791,1763081496647,-151.0,0.00033,31]
[393898792,1763081496656,-151.0,0.00033,31]
[393898793,1763081496665,-151.0,0.00033,7]
[393898794,1763081496674,-151.0,0.00033,7]
[393898795,1763081496684,-151.0,0.00033,7]
[393898796,1763081496693,-151.0,0.00033,31]
[393898797,1763081496701,-151.0,0.00033,31]
[393898798,1763081496710,-151.0,0.00033,31]
[393898799,1763081496719,-151.0,0.00033,31]
[393898800,1763081496728,-151.0,0.00033,7]
[393898801,1763081496738,-151.0,0.00033,28]
[393898802,1763081496747,-151.0,0.00033,31]
[393898803,1763081496757,-181.953465,0.00033,31]
[393898804,1763081496766,-151.0,0.00033,31]
[393898805,1763081496776,-154.408256,0.00033,31]
[393898806,1763081496786,-151.0,0.00033,31]
[393898807,1763081496795,-315.038055,0.00033,31]
[393898808,1763081496804,-315.038055,0.00033,31]
[393898809,1763081496814,-151.0,0.00033,31]
[393898810,1763081496824,-234.910737,0.00033,31]
[393898811,1763081496834,-315.038055,0.00033,31]
[393898812,1763081496843,-151.0,0.00033,31]
[393898813,1763081496852,-234.910737,0.00033,31]
[393898814,1763081496862,-315.038055,0.00033,31]
[393898815,1763081496871,-151.0,0.00033,31]
[393898816,1763081496881,-234.910737,0.00033,31]
[393898817,1763081496890,-151.0,0.00033,31]
[393898818,1763081496899,-151.0,0.00033,31]
[393898819,1763081496909,-151.0,0.00033,31]
[393898820,1763081496917,-234.910737,0.00033,31]
[393898821,1763081496927,-151.0,0.00033,31]
[393898822,1763081496936,-151.0,0.00033,31]
[393898823,1763081496945,-151.0,0.00033,31]
[393898824,1763081496954,-151.0,0.00033,31]
[393898825,1763081496964,-151.0,0.00033,31]
[393898826,1763081496973,-151.0,0.00033,31]
[393898827,1763081496982,-151.0,0.00033,31]
[393898828,1763081496991,-151.0,0.00033,31]
[393898829,1763081497003,-151.0,0.00033,31]
[393898830,1763081497020,-151.0,0.00033,31]
[393898831,1763081497034,-151.0,0.00033,31]
[393898832,1763081497047,-213.586974,0.00033,31]
[393898833,1763081497063,-1412.293659,0.00033,31]
[393898834,1763081497077,-151.0,0.00033,31]
[393898835,1763081497092,-151.0,0.00033,31]
[393898836,1763081497106,-1412.293659,0.00033,31]
[393898837,1763081497122,-1412.293659,0.00033,31]
[393898838,1763081497137,-1412.293659,0.00033,31]
[393898839,1763081497149,-1412.293659,0.00033,31]
[393898840,1763081497162,-1412.293659,0.00033,31]
[393898841,1763081497176,-1412.293659,0.00033,31]
[393898842,1763081497190,-1412.293659,0.00033,31]
[393898843,1763081497203,-151.0,0.00033,31]
[393898844,1763081497214,-151.0,0.00033,31]
[393898845,1763081497226,-151.0,0.00033,31]
[393898846,1763081497239,-151.0,0.00033,31]
[393898847,1763081497253,-151.0,0.00033,31]
[393898848,1763081497268,-151.0,0.00033,31]
[393898849,1763081497283,-151.0,0.00033,31]
[393898850,1763081497297,-151.0,0.00033,31]
[393898851,1763081497309,-151.0,0.00033,31]
[393898852,1763081497320,-159.357752,0.00033,31]
[393898853,1763081497331,-151.0,0.00033,31]
[393898854,1763081497347,-151.0,0.00033,31]
[393898855,1763081497360,-151.0,0.00033,31]
[393898856,1763081497371,-151.0,0.00033,31]
[393898857,1763081497383,-239.5863,0.00033,31]
[393898858,1763081497396,-151.0,0.00033,31]
[393898859,1763081497408,-151.0,0.00033,31]
[393898860,1763081497421,-151.0,0.00033,31]
[393898861,1763081497432,-151.0,0.00033,31]
[393898862,1763081497445,-500.0,0.00033,30]
[393898863,1763081497458,-219.956893,0.00033,31]